bitfinex/quotes_BTCUSD_20260117
["timestamp","ask_amount","ask_price","bid_price","bid_amount"]
[1768671240615,0.01048536,95371.0,95363.0,0.01095828]
[1768671240616,0.26298445,95376.0,95371.0,0.01048536]
[1768671240870,0.01048525,95372.0,95367.0,0.0104858]
[1768671241068,0.06291155,95372.0,95367.0,0.0104858]
[1768671241474,0.01048536,95371.0,95368.0,0.01048569]
[1768671241673,0.01048514,95373.0,95369.0,0.01048558]
[1768671242301,0.06291096,95373.0,95369.0,0.01048558]
[1768671243226,0.06291168,95372.0,95368.0,0.01048569]
[1768671243425,0.01048536,95371.0,95367.0,0.0104858]
[1768671243632,0.01048536,95371.0,95368.0,0.01048569]
[1768671244508,0.01048536,95371.0,95368.0,0.01028946]
[1768671244912,0.01048536,95371.0,95368.0,0.01009323]
[1768671245571,0.01048536,95371.0,95367.0,0.0104858]
[1768671246243,0.01048525,95372.0,95368.0,0.01048569]
[1768671247414,0.01048525,95372.0,95368.0,0.06291417]
[1768671247614,0.01048525,95372.0,95369.0,0.01048558]
[1768671247838,0.01048481,95376.0,95371.0,0.06291219]
[1768671248012,0.01048492,95375.0,95371.0,0.01048536]
[1768671248917,0.01048503,95374.0,95371.0,0.01048536]
[1768671250507,0.01048492,95375.0,95371.0,0.01048536]
[1768671250651,0.06290963,95375.0,95371.0,0.01048536]
[1768671251601,0.01048503,95374.0,95370.0,0.01048547]
[1768671251786,0.06291024,95374.0,95370.0,0.01048547]
[1768671252790,0.01048503,95374.0,95370.0,0.01048547]
[1768671253213,0.01048503,95374.0,95371.0,0.01048536]
[1768671254342,0.01048492,95375.0,95371.0,0.01048536]
[1768671255206,0.01048492,95375.0,95371.0,0.06291209]
[1768671255418,0.01048492,95375.0,95372.0,0.01048525]
[1768671256336,0.01048481,95376.0,95372.0,0.01048525]
[1768671257344,0.00046717,95378.0,95375.0,0.06290952]
[1768671257557,0.00046717,95378.0,95375.0,0.0521697]
[1768671258426,0.00046717,95378.0,95375.0,0.06265462]
[1768671259798,0.00046717,95378.0,95376.0,0.05242396]
[1768671260002,0.00046717,95378.0,95376.0,0.05024397]
[1768671260202,0.00046717,95378.0,95376.0,0.05016013]
[1768671261572,0.00046717,95378.0,95376.0,0.05242355]
[1768671261785,0.00046717,95378.0,95377.0,0.05242354]
[1768671261979,0.13756426,95381.0,95377.0,0.05860531]
[1768671262382,0.12708,95381.0,95378.0,0.06290728]
[1768671262626,0.01048371,95386.0,95381.0,1e-08]
[1768671262824,0.12708,95383.0,95382.0,0.01048415]
[1768671264400,0.17950055,95383.0,95381.0,1e-08]
[1768671264807,0.05242079,95382.0,95381.0,1e-08]
[1768671265017,0.01048426,95381.0,95378.0,0.01048459]
[1768671265232,0.01048426,95381.0,95377.0,0.0104847]
[1768671265488,0.06290569,95381.0,95377.0,0.0104847]
[1768671265892,0.13756404,95383.0,95378.0,0.01048459]
[1768671266093,0.13756404,95383.0,95378.0,0.06290715]
[1768671266684,0.18998437,95383.0,95378.0,0.06290715]
[1768671267332,0.13756404,95383.0,95379.0,0.01048448]
[1768671268144,0.01048415,95382.0,95377.0,0.0104847]
[1768671269227,0.06290504,95382.0,95377.0,0.0104847]
[1768671269450,0.06290563,95381.0,95377.0,0.0104847]
[1768671269668,0.01048437,95380.0,95377.0,0.0104847]
[1768671270949,0.01048426,95381.0,95378.0,0.01048459]
[1768671271373,0.01048415,95382.0,95379.0,0.01048448]
[1768671272509,0.13756404,95383.0,95380.0,0.01048437]
[1768671273987,0.12708,95383.0,95381.0,0.05242124]
[1768671276601,0.12708,95383.0,95381.0,0.05234299]
[1768671277039,0.13756404,95383.0,95380.0,0.01048437]
[1768671280616,0.01048415,95382.0,95379.0,0.01048448]
[1768671281488,0.06290504,95382.0,95377.0,0.06290823]
[1768671281806,0.01048426,95381.0,95377.0,0.0104847]
[1768671282014,0.01048415,95382.0,95377.0,0.0104847]
[1768671282015,0.01048415,95382.0,95378.0,0.01048459]
[1768671282212,0.01048415,95382.0,95378.0,0.01028839]
[1768671284223,0.06290499,95382.0,95378.0,0.01028839]
[1768671284452,0.0629058,95381.0,95377.0,0.0104847]
[1768671285259,0.01048437,95380.0,95376.0,0.01048481]
[1768671285498,0.01048448,95379.0,95376.0,0.01048481]
[1768671286917,0.01048448,95379.0,95375.0,0.01048492]
[1768671287611,0.01048448,95379.0,95375.0,0.06290938]
[1768671287904,0.06290696,95379.0,95375.0,0.01048492]
[1768671288082,0.01048448,95379.0,95375.0,0.01048492]
[1768671291264,0.01048448,95379.0,95375.0,0.06290947]
[1768671293740,0.01048448,95379.0,95375.0,0.01048492]
[1768671294233,0.01048448,95379.0,95375.0,0.0629094]
[1768671294395,0.01048448,95379.0,95375.0,0.01048492]
[1768671295885,0.01048448,95379.0,95375.0,0.01028872]
[1768671296316,0.06290713,95379.0,95375.0,0.01028872]
[1768671296504,0.01048459,95378.0,95375.0,0.01028872]
[1768671297148,0.01048459,95378.0,95373.0,0.06291071]
[1768671298078,0.0104847,95377.0,95373.0,0.01048514]
[1768671298868,0.06290828,95377.0,95373.0,0.01048514]
[1768671299280,0.01048481,95376.0,95373.0,0.01048514]
[1768671299704,0.0104847,95377.0,95374.0,0.01048503]
[1768671299916,0.01048448,95379.0,95375.0,0.01048492]
[1768671300579,0.01048459,95378.0,95373.0,0.01048514]
[1768671300791,0.06290772,95378.0,95373.0,0.01048514]
[1768671301326,0.0104847,95377.0,95373.0,0.01048514]
[1768671301539,0.01048459,95378.0,95374.0,0.06291021]
[1768671301759,0.01048448,95379.0,95375.0,0.01048492]
[1768671301979,0.01048437,95380.0,95376.0,0.01048481]
[1768671302421,0.01048437,95380.0,95377.0,0.0104847]
[1768671302608,0.13756415,95382.0,95378.0,0.01048459]
[1768671302857,0.18998503,95382.0,95378.0,0.00971519]
[1768671303079,0.01048415,95382.0,95378.0,0.00971519]
[1768671303299,0.13756415,95382.0,95378.0,0.00971519]
[1768671303526,0.12708,95382.0,95379.0,0.01048448]
[1768671303997,0.12708,95383.0,95380.0,0.01048437]
[1768671304232,0.01048393,95384.0,95380.0,0.01048437]
[1768671304233,0.12708,95384.0,95383.0,0.05242024]
[1768671305998,0.09962164,95384.0,95383.0,0.05242024]
[1768671309124,0.09962164,95384.0,95382.0,0.06290488]
[1768671309652,0.05716713,95384.0,95383.0,0.05242024]
[1768671309829,0.00049862,95385.0,95384.0,0.05241969]
[1768671313269,0.00049862,95385.0,95384.0,0.05234143]
[1768671313698,0.00049862,95385.0,95382.0,0.01048415]
[1768671313907,0.00049862,95385.0,95384.0,0.05241969]
[1768671317372,0.00049862,95385.0,95383.0,0.05242015]
[1768671317913,0.000408,95385.0,95383.0,0.05242015]
[1768671318137,0.000408,95385.0,95382.0,0.01048415]
[1768671319355,0.000408,95385.0,95382.0,0.06290478]
[1768671320955,0.000408,95385.0,95382.0,0.01048415]
[1768671321849,0.000408,95385.0,95383.0,0.05242024]
[1768671322358,0.000408,95385.0,95382.0,0.01048415]
[1768671322564,0.000408,95385.0,95384.0,0.05241969]
[1768671322767,0.000408,95385.0,95384.0,0.05222349]
[1768671323276,1e-08,95385.0,95384.0,0.05222349]
[1768671323712,0.06289642,95395.0,95382.0,0.06290457]
[1768671323713,0.01048185,95403.0,95396.0,0.01048261]
[1768671323941,0.01048229,95399.0,95395.0,0.01048272]
[1768671324160,0.01048229,95399.0,95394.0,0.06289659]
[1768671324161,0.0104825,95397.0,95394.0,0.01048283]
[1768671324387,0.0104825,95397.0,95393.0,0.01048294]
[1768671324603,0.01048261,95396.0,95393.0,0.01048294]
[1768671324996,0.01053702,95396.0,95393.0,0.01048294]
[1768671325419,0.01053702,95396.0,95392.0,0.01048305]
[1768671325883,0.01048272,95395.0,95392.0,0.01048305]
[1768671326351,0.01048283,95394.0,95390.0,0.35899262]
[1768671326752,0.01048283,95394.0,95391.0,0.01048316]
[1768671327668,0.01048283,95394.0,95390.0,0.35899262]
[1768671327669,0.06289707,95394.0,95390.0,0.35899262]
[1768671328168,0.01048283,95394.0,95390.0,0.35899262]
[1768671328797,0.01048294,95393.0,95390.0,0.12708]
[1768671329007,0.0104836,95387.0,95378.0,0.23191394]
[1768671329224,0.0104836,95387.0,95380.0,0.13756437]
[1768671329459,0.06290168,95387.0,95381.0,0.05242104]
[1768671329824,0.0104836,95387.0,95382.0,0.06290489]
[1768671331135,0.0104836,95387.0,95383.0,0.05242018]
[1768671331341,0.01048338,95389.0,95385.0,0.01048382]
[1768671333227,0.06290098,95388.0,95383.0,0.01048404]
[1768671333431,0.01048349,95388.0,95384.0,0.01048393]
[1768671335297,0.01573732,95389.0,95384.0,0.01048393]
[1768671335683,0.01048327,95390.0,95384.0,0.01048393]
[1768671335882,0.01048349,95388.0,95385.0,0.01048382]
[1768671336088,0.01048338,95389.0,95385.0,0.01048382]
[1768671336731,0.01048338,95389.0,95385.0,0.06290288]
[1768671336947,0.01039275,95389.0,95385.0,0.06290288]
[1768671337152,0.01039275,95389.0,95385.0,0.01048382]
[1768671337355,0.01048349,95388.0,95384.0,0.01048393]
[1768671337777,0.06290107,95388.0,95384.0,0.01048393]
[1768671337987,0.01048349,95388.0,95384.0,0.01048393]
[1768671338200,0.01048349,95388.0,95384.0,0.01028775]
[1768671338641,0.0104836,95387.0,95383.0,0.01048404]
[1768671342084,0.0104836,95387.0,95383.0,0.06290426]
[1768671342870,0.01048371,95386.0,95382.0,0.01048415]
[1768671343057,0.01039307,95386.0,95383.0,0.01048404]
[1768671343895,0.0104836,95387.0,95383.0,0.01048404]
[1768671344925,0.0104836,95387.0,95383.0,0.06290425]
[1768671346497,0.0104836,95387.0,95384.0,0.01048393]
[1768671347079,0.01048371,95386.0,95383.0,0.01048404]
[1768671348108,0.01048404,95383.0,95380.0,0.34410174]
[1768671348282,0.01048404,95383.0,95380.0,0.35458611]
[1768671348623,0.01048382,95385.0,95381.0,0.06290516]
[1768671349265,0.01048382,95385.0,95382.0,0.01048415]
[1768671352308,0.01048371,95386.0,95382.0,0.06290449]
[1768671353290,0.01048371,95386.0,95383.0,0.01048404]
[1768671356302,0.0104836,95387.0,95383.0,0.06290419]
[1768671356559,0.01048371,95386.0,95382.0,0.01048415]
[1768671357006,0.01048371,95386.0,95382.0,0.06290481]
[1768671357421,0.0104836,95387.0,95384.0,0.01048393]
[1768671358918,0.06290071,95389.0,95384.0,0.01048393]
[1768671359704,0.01048349,95388.0,95384.0,0.01048393]
[1768671360959,0.01048371,95386.0,95383.0,0.01048404]
[1768671361324,0.01048371,95386.0,95383.0,0.01043873]
[1768671362686,0.01048349,95388.0,95384.0,0.0629032]
[1768671362894,0.01048349,95388.0,95385.0,0.01048382]
[1768671363098,0.01048338,95389.0,95385.0,0.01048382]
[1768671366098,0.01048338,95389.0,95381.0,0.03868083]
[1768671366099,0.22526097,95420.0,95405.0,0.01048163]
[1768671366297,0.22526097,95420.0,95406.0,0.12704]
[1768671366298,0.01048108,95410.0,95406.0,0.12704]
[1768671366513,0.01095503,95412.0,95407.0,0.01048141]
[1768671366772,0.01095503,95412.0,95408.0,0.0104813]
[1768671366978,0.00047417,95412.0,95408.0,0.0104813]
[1768671367200,0.01048152,95406.0,95398.0,0.01095503]
[1768671367404,0.01048108,95410.0,95405.0,0.01048163]
[1768671367621,0.01048119,95409.0,95405.0,0.01048163]
[1768671367836,0.01048108,95410.0,95406.0,0.01048152]
[1768671368049,0.01048108,95410.0,95407.0,0.12704]
[1768671368476,0.05240595,95409.0,95407.0,0.12704]
[1768671368653,0.01048141,95407.0,95389.0,0.00064763]
[1768671368885,0.06288852,95407.0,95400.0,0.13752218]
[1768671369083,0.01048152,95406.0,95401.0,0.01048207]
[1768671369282,0.01048152,95406.0,95401.0,0.06289232]
[1768671369459,0.01048119,95409.0,95403.0,0.01048185]
[1768671370489,0.01048119,95409.0,95405.0,0.01048163]
[1768671373002,0.01048108,95410.0,95406.0,0.01048152]
[1768671373416,0.22506097,95411.0,95407.0,0.01048141]
[1768671373621,0.00047417,95412.0,95409.0,0.01048119]
[1768671375396,0.00047417,95412.0,95409.0,0.06284164]
[1768671375982,0.22506097,95411.0,95389.0,0.06025666]
[1768671376176,0.06288938,95406.0,95401.0,0.01048207]
[1768671376379,0.06288938,95406.0,95402.0,0.12704]
[1768671376560,0.01048163,95405.0,95402.0,0.12704]
[1768671377519,0.05240901,95404.0,95402.0,0.12704]
[1768671377723,0.0628899,95405.0,95402.0,0.12704]
[1768671378627,0.05240873,95404.0,95402.0,0.12704]
[1768671379564,0.05240881,95404.0,95402.0,0.12704]
[1768671379806,0.05240925,95403.0,95402.0,0.12704]
[1768671379984,0.05240925,95403.0,95402.0,0.12327261]
[1768671380752,0.05240925,95403.0,95380.0,0.28484343]
[1768671380753,0.01048218,95400.0,95394.0,0.13752283]
[1768671380982,0.01048229,95399.0,95395.0,0.01048272]
[1768671383415,0.01048229,95399.0,95394.0,0.12704]
[1768671383624,0.0104824,95398.0,95394.0,0.01048283]
[1768671384617,0.01048229,95399.0,95395.0,0.01048272]
[1768671385000,0.01048218,95400.0,95396.0,0.01048261]
[1768671392386,0.01048229,95399.0,95395.0,0.01048272]
[1768671392589,0.01048229,95399.0,95396.0,0.01048261]
[1768671392725,0.01048229,95399.0,95395.0,0.01048272]
[1768671393821,0.06289383,95399.0,95395.0,0.01048272]
[1768671396869,0.01048229,95399.0,95396.0,0.01048261]
[1768671397720,0.0104824,95398.0,95395.0,0.01048272]
[1768671400385,0.0104824,95398.0,95393.0,0.05241474]
[1768671400386,0.0104825,95397.0,95393.0,0.01048294]
[1768671402510,0.01048294,95393.0,95390.0,0.12704]
[1768671403094,0.01048294,95393.0,95390.0,0.13752327]
[1768671403312,0.01048283,95394.0,95390.0,0.13752327]
[1768671403522,0.01048283,95394.0,95391.0,0.01048316]
[1768671406376,0.01048261,95396.0,95392.0,0.01048305]
[1768671410891,0.06289578,95396.0,95392.0,0.01048305]
[1768671411517,0.01048261,95396.0,95392.0,0.01048305]
[1768671412670,0.01048283,95394.0,95391.0,0.01048316]
[1768671412871,0.01048283,95394.0,95390.0,0.13752327]
[1768671413287,0.01048283,95394.0,95390.0,0.18993956]
[1768671413703,0.01048283,95394.0,95390.0,0.13752327]
[1768671414349,0.01048261,95396.0,95391.0,0.01048316]
[1768671415847,0.01048261,95396.0,95391.0,0.062899]
[1768671417255,0.06289577,95396.0,95391.0,0.01048316]
[1768671417476,0.06289577,95396.0,95391.0,0.06289894]
[1768671420287,0.01048272,95395.0,95391.0,0.01048316]
[1768671420501,0.01048294,95393.0,95390.0,0.12704]
[1768671420690,0.0628977,95393.0,95390.0,0.12704]
[1768671420927,0.01048305,95392.0,95389.0,0.23005145]
[1768671421106,0.01048283,95394.0,95382.0,0.03759013]
[1768671421107,0.01048327,95390.0,95383.0,0.05241975]
[1768671421315,0.05241605,95391.0,95386.0,0.01048371]
[1768671421986,0.01048327,95390.0,95387.0,0.0104836]
[1768671422214,0.01048316,95391.0,95387.0,0.06290146]
[1768671422823,0.12704,95396.0,95395.0,0.05241364]
[1768671423035,0.12704,95396.0,95393.0,0.06289761]
[1768671423243,0.12704,95396.0,95394.0,0.05241419]
[1768671423685,0.12704,95396.0,95393.0,0.01048294]
[1768671424938,0.13752261,95396.0,95393.0,0.01048294]
[1768671425142,0.13752261,95396.0,95392.0,0.01048305]
[1768671427164,0.01048272,95395.0,95392.0,0.01048305]
[1768671427393,0.13752261,95396.0,95392.0,0.01048305]
[1768671427805,0.01048272,95395.0,95391.0,0.01048316]
[1768671428435,0.01048283,95394.0,95391.0,0.01048316]
[1768671428894,0.01048272,95395.0,95391.0,0.01048316]
[1768671429106,0.01048283,95394.0,95391.0,0.01048316]
[1768671429763,0.01048272,95395.0,95391.0,0.01048316]
[1768671430408,0.01048283,95394.0,95391.0,0.01048316]
[1768671431801,0.01048283,95394.0,95390.0,0.01048327]
[1768671432426,0.01048283,95394.0,95391.0,0.01048316]
[1768671433199,0.06289654,95395.0,95391.0,0.01048316]
[1768671433363,0.06289704,95394.0,95390.0,0.01048327]
[1768671433563,0.01048294,95393.0,95387.0,0.0104836]
[1768671433985,0.12704,95396.0,95380.0,0.0001594]
[1768671433986,0.01048349,95388.0,95385.0,0.01048382]
[1768671434161,0.01048349,95388.0,95380.0,0.0001594]
[1768671434162,0.01048382,95385.0,95380.0,0.0001594]
[1768671434380,0.05242011,95384.0,95380.0,0.0001594]
[1768671434576,0.01048404,95383.0,95380.0,0.0001594]
[1768671434881,0.01048437,95380.0,95375.0,0.06290947]
[1768671435049,0.01048448,95379.0,95376.0,0.01048481]
[1768671435257,0.01039385,95379.0,95376.0,0.01048481]
[1768671435664,0.01039385,95379.0,95375.0,0.01048492]
[1768671435895,0.01039385,95379.0,95376.0,5.441e-05]
[1768671436266,0.01039385,95379.0,95376.0,0.01053922]
[1768671436689,0.01039385,95379.0,95376.0,5.441e-05]
[1768671437436,0.05242354,95377.0,95376.0,5.441e-05]
[1768671437640,0.01048492,95375.0,95372.0,0.00049866]
[1768671438017,0.0629096,95375.0,95372.0,0.00049866]
[1768671440188,0.01048492,95375.0,95372.0,0.01098391]
[1768671440638,0.01048459,95378.0,95373.0,0.01048514]
[1768671440854,0.01039385,95379.0,95375.0,0.01048492]
[1768671442066,0.01048459,95378.0,95375.0,0.01048492]
[1768671442749,0.01039385,95379.0,95376.0,0.01048481]
[1768671442955,0.01030322,95379.0,95376.0,0.01048481]
[1768671443368,0.01048437,95380.0,95376.0,0.02693668]
[1768671443784,0.01048437,95380.0,95376.0,0.05242406]
[1768671444197,0.01048437,95380.0,95375.0,0.01048492]
[1768671444412,0.01048437,95380.0,95377.0,0.0104847]
[1768671445668,0.01048426,95381.0,95377.0,0.0104847]
[1768671445852,0.12704,95382.0,95378.0,0.01048459]
[1768671446508,0.12704,95382.0,95379.0,0.01048448]
[1768671448719,0.13752415,95382.0,95379.0,0.01048448]
[1768671453209,0.12704,95382.0,95379.0,0.01048448]
[1768671454954,0.0104836,95387.0,95383.0,0.01048404]
[1768671455370,0.0104836,95387.0,95383.0,0.06290422]
[1768671455775,0.0104836,95387.0,95384.0,0.01048393]
[1768671455918,0.12704,95389.0,95386.0,0.06290227]
[1768671456111,0.01048272,95395.0,95387.0,0.0104836]
[1768671456320,0.25321567,95410.0,95371.0,0.0001594]
[1768671456321,0.12704,95399.0,95389.0,0.20511173]
[1768671456636,0.05241303,95398.0,95390.0,0.05241595]
[1768671456835,0.05241254,95397.0,95390.0,0.05241595]
[1768671457204,0.05241315,95396.0,95390.0,0.05241595]
[1768671457388,0.05241315,95396.0,95391.0,0.01048316]
[1768671457389,0.01048272,95395.0,95391.0,0.01048316]
[1768671458384,0.0104825,95397.0,95392.0,0.01048305]
[1768671459280,0.0104825,95397.0,95393.0,0.01048294]
[1768671462502,0.06289505,95397.0,95393.0,0.01048294]
[1768671462951,0.01048283,95394.0,95389.0,0.21559511]
[1768671463172,0.01048283,95394.0,95390.0,0.01048327]
[1768671463332,0.01048272,95395.0,95391.0,0.01048316]
[1768671463535,0.0104825,95397.0,95393.0,0.21559467]
[1768671463735,0.06289507,95397.0,95393.0,0.21559467]
[1768671463956,0.06289507,95397.0,95393.0,0.01048294]
[1768671465398,0.01048261,95396.0,95393.0,0.01048294]
[1768671465577,0.01048261,95396.0,95392.0,0.01048305]
[1768671466216,0.01048261,95396.0,95391.0,0.06289887]
[1768671466217,0.01048272,95395.0,95391.0,0.01048316]
[1768671468399,0.01048261,95396.0,95392.0,0.06289827]
[1768671468986,0.0104825,95397.0,95393.0,0.0628976]
[1768671469176,0.0104824,95398.0,95394.0,0.01048283]
[1768671469392,0.0104825,95397.0,95394.0,0.01048283]
[1768671470963,0.0104825,95397.0,95393.0,0.01048294]
[1768671471316,0.06289509,95397.0,95393.0,0.01048294]
[1768671471448,0.0104825,95397.0,95393.0,0.01048294]
[1768671473537,0.01048272,95395.0,95391.0,0.01048316]
[1768671474065,0.01048272,95395.0,95392.0,0.01048305]
[1768671474268,0.01048261,95396.0,95392.0,0.01048305]
[1768671474484,0.01048272,95395.0,95392.0,0.01048305]
[1768671474685,0.01048272,95395.0,95391.0,0.01048316]
[1768671475326,0.01048261,95396.0,95392.0,0.01048305]
[1768671476431,0.01048261,95396.0,95393.0,0.01048294]
[1768671480361,0.0104825,95397.0,95393.0,0.06289764]
[1768671480811,0.0104825,95397.0,95393.0,0.01048294]
[1768671482062,0.0104825,95397.0,95393.0,0.06289763]
[1768671482263,0.0524106,95401.0,95393.0,0.06289763]
[1768671482264,0.01048207,95401.0,95395.0,0.01048272]
[1768671482436,0.01048229,95399.0,95395.0,0.01048272]
[1768671482642,0.0104825,95397.0,95394.0,0.01048283]
[1768671483260,0.01048261,95396.0,95390.0,0.01048327]
[1768671483474,0.01048294,95393.0,95390.0,0.01048327]
[1768671483613,0.01048294,95393.0,95389.0,0.01048338]
[1768671483821,0.01048305,95392.0,95389.0,0.01048338]
[1768671484428,0.01048294,95393.0,95389.0,0.0629003]
[1768671484638,0.01048294,95393.0,95389.0,0.01048338]
[1768671485044,0.01048261,95396.0,95390.0,0.01048327]
[1768671485258,0.01048261,95396.0,95392.0,0.01048305]
[1768671485693,0.01048272,95395.0,95391.0,0.01048316]
[1768671487247,0.01048283,95394.0,95391.0,0.01048316]
[1768671487848,0.0104824,95398.0,95392.0,0.01048305]
[1768671488783,0.0104824,95398.0,95393.0,0.05241459]
[1768671489256,0.0104824,95398.0,95394.0,0.01048283]
[1768671490698,0.01048261,95396.0,95391.0,0.01048316]
[1768671490910,0.01048261,95396.0,95393.0,0.01048294]
[1768671496207,0.0104825,95397.0,95394.0,0.01048283]
[1768671496412,0.0104824,95398.0,95394.0,0.06289702]
[1768671496851,0.0104824,95398.0,95395.0,0.01048272]
[1768671499054,0.01048229,95399.0,95395.0,0.06289635]
[1768671499259,0.01048229,95399.0,95396.0,0.01048261]
[1768671499904,0.01048229,95399.0,95394.0,0.06289604]
[1768671499905,0.01048229,95399.0,95394.0,0.01048283]
[1768671500818,0.01048229,95399.0,95395.0,0.01048272]
[1768671501025,0.01048229,95399.0,95395.0,0.06289607]
[1768671501474,0.01039164,95399.0,95396.0,0.01048261]
[1768671504715,0.01048218,95400.0,95396.0,0.01048261]
[1768671505619,0.0628931,95400.0,95396.0,0.01048261]
[1768671506278,1e-08,95412.0,95409.0,0.01048119]
[1768671506484,5.932e-05,95412.0,95409.0,0.01048119]
[1768671506697,5.932e-05,95412.0,95409.0,0.06288696]
[1768671506909,5.932e-05,95412.0,95409.0,0.01048119]
[1768671507118,0.01048097,95411.0,95407.0,0.01048141]
[1768671507339,0.01054018,95412.0,95407.0,0.01048141]
[1768671507952,5.932e-05,95412.0,95409.0,0.01048119]
[1768671508383,5.932e-05,95412.0,95408.0,0.0104813]
[1768671508813,5.932e-05,95412.0,95409.0,0.01048119]
[1768671509603,0.01054018,95412.0,95408.0,0.0104813]
[1768671509742,0.01048108,95410.0,95406.0,0.21029885]
[1768671510150,0.01048119,95409.0,95406.0,0.21029885]
[1768671510503,0.06288735,95409.0,95406.0,0.21029885]
[1768671512977,0.05240663,95408.0,95406.0,0.21029885]
[1768671513418,0.01048119,95409.0,95407.0,0.20849744]
[1768671514079,0.06288758,95409.0,95407.0,0.20849744]
[1768671515459,0.06288758,95409.0,95405.0,0.21897907]
[1768671515824,0.0104813,95408.0,95405.0,0.20849744]
[1768671516047,0.01048108,95410.0,95406.0,0.01048152]
[1768671516206,0.01048108,95410.0,95405.0,0.21897907]
[1768671516612,0.01048108,95410.0,95406.0,0.01048152]
[1768671517174,0.01048119,95409.0,95405.0,0.21897907]
[1768671519455,0.01048119,95409.0,95406.0,0.01048152]
[1768671520430,0.01048108,95410.0,95406.0,0.01048152]
[1768671523452,0.01048108,95410.0,95407.0,0.01048141]
[1768671524725,0.01048119,95409.0,95406.0,0.01048152]
[1768671524970,0.01048108,95410.0,95406.0,0.01048152]
[1768671525569,0.06288653,95410.0,95406.0,0.01048152]
[1768671525776,0.01048108,95410.0,95406.0,0.01048152]
[1768671528065,0.01054018,95412.0,95407.0,0.06288846]
[1768671528273,0.01014765,95412.0,95408.0,0.0104813]
[1768671528712,0.01014765,95412.0,95408.0,0.06288774]
[1768671528916,0.01048097,95411.0,95407.0,0.06288845]
[1768671529128,0.00891029,95411.0,95408.0,0.0104813]
[1768671529347,0.01048075,95413.0,95408.0,0.0104813]
[1768671529798,0.06288457,95413.0,95408.0,0.06288771]
[1768671530170,0.01048075,95413.0,95409.0,0.01048119]
[1768671531892,0.01048075,95413.0,95409.0,0.06288712]
[1768671533099,0.01048075,95413.0,95410.0,0.01048108]
[1768671537315,0.0001594,95414.0,95411.0,0.01048097]
[1768671540313,0.01064004,95414.0,95411.0,0.01048097]
[1768671540511,0.01048108,95410.0,95405.0,0.06288939]
[1768671541388,0.01048119,95409.0,95406.0,0.01048152]
[1768671542499,0.01008806,95409.0,95406.0,0.01048152]
[1768671543102,0.01008845,95408.0,95404.0,0.13752174]
[1768671543526,0.0100886,95404.0,95401.0,0.01048207]
[1768671543844,0.01048163,95405.0,95402.0,0.12704]
[1768671544048,0.01048152,95406.0,95402.0,0.13752196]
[1768671544901,0.01048141,95407.0,95403.0,0.01048185]
[1768671545961,0.01008845,95408.0,95404.0,0.01048174]
[1768671546159,0.01048141,95407.0,95404.0,0.01048174]
[1768671546399,0.01048152,95406.0,95403.0,0.01048185]
[1768671546825,0.01048141,95407.0,95403.0,0.01048185]
[1768671546961,0.01048141,95407.0,95403.0,0.06289104]
[1768671547159,0.06288857,95407.0,95404.0,0.12704]
[1768671547409,0.06288858,95407.0,95403.0,0.01048185]
[1768671547636,0.01048141,95407.0,95405.0,0.12704]
[1768671548319,0.0628885,95407.0,95405.0,0.12704]
[1768671548592,0.01048141,95407.0,95405.0,0.12704]
[1768671548795,0.01048174,95404.0,95401.0,0.12709931]
[1768671549252,0.01048174,95404.0,95395.0,0.01048272]
[1768671549253,0.06289454,95398.0,95392.0,0.01048305]
[1768671549461,0.0101472,95397.0,95393.0,0.01048294]
[1768671549664,0.01048261,95396.0,95391.0,0.01048316]
[1768671549867,0.01048261,95396.0,95392.0,0.01048305]
[1768671550236,4.94e-05,95398.0,95393.0,0.01048294]
[1768671551359,4.94e-05,95398.0,95395.0,0.01048272]
[1768671552563,0.0104825,95397.0,95394.0,0.01048283]
[1768671552738,4.94e-05,95398.0,95394.0,0.01048283]
[1768671554300,0.0105318,95398.0,95393.0,0.01048294]
[1768671554886,0.01048261,95396.0,95392.0,0.01048305]
[1768671555221,0.01048272,95395.0,95391.0,0.01048316]
[1768671555695,0.01048272,95395.0,95392.0,0.01048305]
[1768671557850,0.01048261,95396.0,95392.0,0.06289832]
[1768671559089,0.01048261,95396.0,95393.0,0.01048294]
[1768671559825,0.0105318,95398.0,95394.0,0.01048283]
[1768671560054,4.94e-05,95398.0,95395.0,0.01048272]
[1768671561805,0.06289511,95397.0,95393.0,0.01048294]
[1768671561984,0.0104825,95397.0,95393.0,0.01048294]
[1768671562394,4.94e-05,95398.0,95395.0,0.01048272]
[1768671563963,4.94e-05,95398.0,95392.0,0.01048305]
[1768671563964,0.01048316,95391.0,95385.0,0.01048382]
[1768671564150,0.01048327,95390.0,95386.0,0.01048371]
[1768671564900,0.01048327,95390.0,95387.0,0.0104836]
[1768671565748,0.01048327,95390.0,95385.0,0.01048382]
[1768671566953,0.01048338,95389.0,95385.0,0.01048382]
[1768671569079,0.01048338,95389.0,95385.0,0.0629029]
[1768671569871,0.01048305,95392.0,95386.0,0.01048371]
[1768671570272,0.01048305,95392.0,95387.0,0.0524176]
[1768671571318,0.01048305,95392.0,95388.0,0.01048349]
[1768671572191,0.01048305,95392.0,95388.0,0.06290092]
[1768671572425,0.01048305,95392.0,95388.0,0.01048349]
[1768671572762,0.06289769,95393.0,95388.0,0.01048349]
[1768671572763,0.01048294,95393.0,95389.0,0.01048338]
[1768671573178,0.01048294,95393.0,95390.0,0.01048327]
[1768671573862,0.01048305,95392.0,95389.0,0.01048338]
[1768671574084,0.01048294,95393.0,95389.0,0.01048338]
[1768671574288,0.06289774,95393.0,95389.0,0.01048338]
[1768671575666,0.01048294,95393.0,95389.0,0.01048338]
[1768671577335,0.01008866,95393.0,95389.0,0.06240487]
[1768671577551,0.01048305,95392.0,95389.0,0.00998813]
[1768671578095,0.06250373,95393.0,95389.0,0.00998813]
[1768671578300,0.01048305,95392.0,95388.0,0.01048349]
[1768671580920,0.01048272,95395.0,95390.0,0.01048327]
[1768671581747,0.01048294,95393.0,95390.0,0.01048327]
[1768671581951,0.01048272,95395.0,95390.0,0.01048327]
[1768671582616,0.06289641,95395.0,95390.0,0.01048327]
[1768671583330,0.06289641,95395.0,95390.0,0.06289959]
[1768671583658,0.01048272,95395.0,95391.0,0.01048316]
[1768671583835,0.01048261,95396.0,95392.0,0.01048305]
[1768671584493,0.12704,95397.0,95393.0,0.01048294]
[1768671584700,0.12704,95397.0,95394.0,0.01048283]
[1768671585497,0.1899352,95397.0,95393.0,0.01048294]
[1768671585968,0.1375225,95397.0,95394.0,0.01048283]
[1768671586201,0.12704,95397.0,95394.0,0.01048283]
[1768671589148,0.12704,95397.0,95394.0,0.0628969]
[1768671589352,0.12704,95397.0,95394.0,0.01048283]
[1768671589552,0.12704,95397.0,95394.0,0.06289702]
[1768671589899,0.12704,95397.0,95394.0,0.06289694]
[1768671590233,0.12704,95397.0,95396.0,0.05241309]
[1768671590493,0.12704,95397.0,95394.0,0.06289675]
[1768671591715,4.94e-05,95398.0,95397.0,0.05241254]
[1768671592781,4.94e-05,95398.0,95395.0,0.06289606]
[1768671592986,4.94e-05,95398.0,95396.0,0.05241309]
[1768671593412,4.94e-05,95398.0,95397.0,0.05241254]
[1768671594956,4.94e-05,95398.0,95395.0,0.06289606]